Cogmind - Beta 14 @@@ ROGUE MODE // 2024.08.24 @ 11:20:36 Player: TheProctologist Result: Destroyed by YI-UF0 with YI-UF0's Doublenader Performance ------------- Evolutions (0) 0 Regions Visited (2) 400 Robots Destroyed (17) 85 Value Destroyed (348) 348 Prototype IDs (0) 0 Alien Tech Used (0) 0 Bonus (0) 0 TOTAL SCORE: 833 Bonus ------- None Cogmind --------- Core Integrity 0/250 Matter 283/300 Energy 100/100 System Corruption 0% Temperature Cool (0) Movement Core (350) Ox6 Location -10/Mines Parts ------- > --- POWER (1) -------- (None) > --- PROPULSION (2) --- (None) > --- UTILITY (2) ------ Large Storage Unit Hacking Suite > --- WEAPON (2) ------- (None) > --- INVENTORY (15) --- Ion Engine Light Ion Engine Light Ion Engine Aluminum Leg Aluminum Leg Sensor Array Light Armor Plating Grenade Launcher Welding Torch Mining Claw Peak State ------------ > --- POWER ------------ Light Nuclear Core > --- PROPULSION ------- Aluminum Leg Aluminum Leg > --- UTILITY ---------- Large Storage Unit Hacking Suite > --- WEAPON ----------- Particle Gun Light Assault Rifle > --- INVENTORY -------- Ion Engine Light Ion Engine Light Ion Engine Aluminum Leg Sensor Array Light Armor Plating Light Assault Rifle Grenade Launcher Mining Laser Mining Claw [Rating: 13] Favorites ----------- Power Light Nuclear Core Engine Ion Engine Power Core Light Nuclear Core Propulsion Aluminum Leg Leg Aluminum Leg Utility Hacking Suite Device Improved Terrain Scanner Storage Large Storage Unit Hackware Hacking Suite Weapon Light Assault Rifle Energy Gun Particle Gun Ballistic Gun Light Assault Rifle Launcher Grenade Launcher Special Weapon Mining Laser Slashing Weapon Mining Claw Build | -11 -10 -10 ------- Run | Yrd Mat Min Slots Evolved . | . . . Power . | . . . Propulsion . | . . . Utility . | . . . Weapon . | . . . Parts Attached 24 | 7 13 4 Power 2 | 1 1 . Engine 1 | 1 . . Core 1 | . 1 . Reactor . | . . . Propulsion 5 | 2 2 1 Treads . | . . . Leg 5 | 2 2 1 Wheel . | . . . Hover . | . . . Flight . | . . . Utility 4 | 2 2 . Device 1 | 1 . . Storage 2 | 1 1 . Processor . | . . . Hackware 1 | . 1 . Protection . | . . . Artifact . | . . . Weapon 13 | 2 8 3 Energy Gun 4 | 1 3 . Energy Cannon . | . . . Ballistic Gun 4 | 1 2 1 Ballistic Cannon . | . . . Launcher 1 | . . 1 Special Weapon 3 | . 2 1 Impact Weapon . | . . . Slashing Weapon 1 | . 1 . Piercing Weapon . | . . . Special Melee Weapon . | . . . Unidentified Prototypes . | . . . Parts Lost 9 | . 2 7 Power 1 | . . 1 Propulsion 3 | . 1 2 Utility . | . . . Weapon 5 | . 1 4 Highest Loss Streak 7 | . 2 7 To Critical Strikes . | . . . Average Slot Usage (%) 98 | . 99 95 Engine 5 | . 7 . Core 7 | . 6 11 Leg 27 | . 28 26 Storage 14 | . 14 14 Hackware 13 | . 13 14 Energy Gun 12 | . 11 12 Ballistic Gun 14 | . 14 14 Peak Build Rating 13 | 9 13 13 Average Rating 10 | 5 10 12 On Entrance 7 | . 9 13 Naked Turns . | . . . Heaviest Build 29 | 14 29 29 Greatest Support 20 | 20 20 20 Greatest Overweight (x) 7 | 1 1 7 Average Overweight (x) . | . . 1 Largest Inventory Capacity 15 | 8 15 15 Average Capacity 11 | 7 10 15 Most Carried 12 | 4 12 12 Average Carried 7 | 1 7 11 Final Capacity 15 | 8 15 15 Final Carried 10 | 4 10 10 Class Distribution -------------------- 56% | Scavenger-Mutant 43% | Mutant Dominant Class ---------------- Scavenger-Mutant | -10/Materials Scavenger-Mutant | -10/Mines Resources | -11 -10 -10 ----------- Run | Yrd Mat Min Matter Collected 456 | 258 124 74 Remotely . | . . . Salvage Created 612 | 157 379 76 Parts 36 | 9 24 3 Haulers Intercepted . | . . . Recyclers Shooed . | . . . Parts Field Recycled . | . . . Retrieved Matter . | . . . Parts Self-Destructed . | . . . Prevented . | . . . Kills | -11 -10 -10 ------- Run | Yrd Mat Min Combat Hostiles Destroyed 10 | . 8 2 Guns 8 | . 6 2 AOE 2 | . 2 . Classes Destroyed 6 | 2 4 . Builder 1 | . 1 . Tunneler 3 | 3 . . Recycler 2 | 1 1 . Operator 1 | . 1 . Swarmer 3 | . 3 . Grunt 7 | . 5 2 Best Kill Streak 4 | 4 4 2 Combat Bots Only 4 | . 4 2 Max Kills in Single Turn 1 | 1 1 1 Gunslinging . | . . . Exploded 1 | . 1 . Melee . | . . . Uniques/NPCs Destroyed . | . . . Combat | -11 -10 -10 -------- Run | Yrd Mat Min Hostile Shots Fired 76 | . 39 37 Missed 21 | . 10 11 Damage Taken 1139 | . 343 796 Core 267 | . 55 212 Absorbed by Shields . | . . . Core Remaining (%) 100 | 100 . . Volleys Fired 62 | 14 37 11 Largest 2 | 2 2 2 Hottest 100 | 60 100 85 Shots Fired 119 | 28 69 22 Gun 115 | 28 65 22 Cannon . | . . . Launcher . | . . . Special 4 | . 4 . Kinetic 70 | 14 39 17 Thermal 9 | . 4 5 Explosive . | . . . Electromagnetic 40 | 14 26 . Robot Hit Streak 10 | 7 8 10 Robot Miss Streak 4 | 3 4 2 Penetration Max . | . . . Secondary Targets 1 | . 1 . Max Gunslinging Chain 1 | . 1 . Shots Hit Robots 70 | 17 36 17 Core Hits 31 | 6 17 8 Critical Kills . | . . . Critical Parts Destroyed . | . . . Critical Strikes . | . . . Melee Attacks 2 | . 2 . Impact . | . . . Slashing 2 | . 2 . Piercing . | . . . Sneak Attacks . | . . . Combat Hostiles . | . . . Follow-up Attacks . | . . . Damage Inflicted 906 | 204 526 176 Guns 752 | 199 377 176 Cannons . | . . . Explosions 149 | . 149 . Melee . | . . . Ramming 5 | 5 . . Kinetic 340 | 64 161 115 Thermal 210 | . 149 61 Explosive . | . . . Electromagnetic 351 | 135 216 . Impact . | . . . Slashing . | . . . Piercing . | . . . Highest Corruption . | . . . Average Corruption . | . . . Corruption Purged . | . . . Corruption Blocked . | . . . Overload Shots . | . . . Overflow Damage . | . . . Projectiles . | . . . Explosions . | . . . Melee . | . . . Knockbacks . | . . . Impact . | . . . Kinetic . | . . . Secondary . | . . . Self-Inflicted Damage 38 | . 38 . Shots 1 | . 1 . Rammed . | . . . Targets Rammed 1 | 1 . . Kicked 1 | 1 . . Crushed . | . . . Highest Temperature 171 | 42 84 171 Average Temperature 37 | 23 33 79 Received Heat Transfer 192 | . 159 33 Siege Activations . | . . . Robots Corrupted . | . . . Combat Hostiles . | . . . Parts Fried 2 | 1 1 . Impact Corruptions . | . . . Robots Melted . | . . . Combat Hostiles . | . . . Parts Melted . | . . . Heat Transferred 298 | . 150 148 Parts Sabotaged . | . . . Parts Stolen . | . . . Parts Stripped . | . . . Power Chain Reactions 2 | . 2 . Alert | -11 -10 -10 ------- Run | Yrd Mat Min Peak Influence 319 | 20 319 96 Initial 46 | . 13 46 Average 127 | 7 162 88 Maximum Alert Level 1 | . 1 . Low Security (%) 76 | 100 64 100 Level 1 23 | . 35 . Level 2 . | . . . Level 3 . | . . . Level 4 . | . . . Level 5 . | . . . High Security . | . . . Max Security . | . . . Squads Dispatched 1 | . 1 . Investigation 1 | . 1 . Extermination . | . . . Reinforcement . | . . . Assault . | . . . Garrison . | . . . Intercept . | . . . Searches Triggered . | . . . Construction Impeded . | . . . Haulers Reinforced . | . . . Active Scanning Responses . | . . . Cargo Convoy Interrupts . | . . . Stealth | -11 -10 -10 --------- Run | Yrd Mat Min Distress Signals 1 | . 1 . Communications Jammed . | . . . Distress Signals . | . . . Times Spotted 18 | . 15 3 Peak Tracking Total 4 | . 4 2 Tactical Retreats 3 | . 3 . Traps | -11 -10 -10 ------- Run | Yrd Mat Min Traps Triggered . | . . . Indirectly . | . . . Trap Hack Attempts . | . . . Triggered . | . . . Disarmed . | . . . Reprogrammed . | . . . Reused . | . . . Traps Extracted . | . . . Installed . | . . . Triggered . | . . . Machines | -11 -10 -10 ---------- Run | Yrd Mat Min Machines Disabled . | . . . Max in Single Turn . | . . . Machines Repaired . | . . . Machines Dismantled . | . . . Machines Sabotaged . | . . . Overloaded Fab Kills . | . . . Hacking | -11 -10 -10 --------- Run | Yrd Mat Min Machines Accessed 3 | . 3 . Terminals 3 | . 3 . Fabricators . | . . . Repair Stations . | . . . Recycling Units . | . . . Scanalyzers . | . . . Garrison Access . | . . . Total Hacks 10 | . 10 . Successful 6 | . 6 . Failed 4 | . 4 . Catastrophic 1 | . 1 . Database Lockouts . | . . . Manual 6 | . 6 . Terminals 10 | . 10 . Fabricators . | . . . Repair Stations . | . . . Recycling Units . | . . . Scanalyzers . | . . . Garrison Access . | . . . Terminal Hacks 3 | . 3 . Hauler Manifests 1 | . 1 . Registered Components 1 | . 1 . Zone Layout 1 | . 1 . Fabricator Hacks . | . . . Repair Station Hacks . | . . . Recycling Unit Hacks . | . . . Scanalyzer . | . . . Garrison Access Hacks . | . . . Unauthorized Hacks 3 | . 3 . Terminals 3 | . 3 . Botnet 3 | . 3 . Fabricators . | . . . Repair Stations . | . . . Recycling Units . | . . . Scanalyzers . | . . . Garrison Access . | . . . Data Cores Recovered 1 | . 1 . Used . | . . . Hacking Detections 3 | . 3 . Full Trace Events 1 | . 1 . Feedback Events . | . . . Feedback Blocked . | . . . Robot Schematics Acquired . | . . . Robots Built . | . . . Authchips . | . . . Time . | . . . Total Robot Build Rating . | . . . Part Schematics Acquired . | . . . Parts Built . | . . . Authchips . | . . . Time . | . . . Total Part Build Rating . | . . . Parts Repaired . | . . . Time . | . . . Parts Recycled . | . . . Recycled Matter . | . . . Retrieved Matter . | . . . Retrieved Components . | . . . Parts Scanalyzed . | . . . Part Schematics Acquired . | . . . Parts Damaged . | . . . Bothacking | -11 -10 -10 ------------ Run | Yrd Mat Min Used RIF Installer . | . . . Robots Hacked . | . . . Non-combat . | . . . Combat . | . . . Robot Hacks Applied . | . . . Relay Couplers Released . | . . . Fabnet Peak Effective % . | . . . Robots Rewired . | . . . Allies Hacked . | . . . Hacks Repelled . | . . . Allies | -11 -10 -10 -------- Run | Yrd Mat Min Total Allies . | . . . Largest Group . | . . . Highest-Rated Group . | . . . Highest-Rated Ally . | . . . Total Orders . | . . . Ally Attacks . | . . . Total Damage . | . . . Kills . | . . . Allies Corrupted . | . . . Allies Melted . | . . . Intel | -11 -10 -10 ------- Run | Yrd Mat Min Robot Analysis Total . | . . . Derelict Logs Recovered 1 | . . 1 Drone Launches . | . . . Drone Recoveries . | . . . Exploration | -11 -10 -10 ------------- Run | Yrd Mat Min Turns Passed 824 | 107 546 171 Spaces Moved 390 | 47 274 69 Core 8 | 6 . 2 Treads . | . . . Legs 382 | 41 274 67 Wheels . | . . . Hover . | . . . Flight . | . . . Fastest Speed 50 | 50 120 190 Average Speed 152 | 112 148 195 Slowest Speed 400 | 120 190 400 Overloaded Moves . | . . . Propulsion Burnouts . | . . . Robots Hopped . | . . . Cave-ins Triggered . | . . . Exploration Rate (%) 29 | 5 46 38 Regions Visited 2 Branch Regions 1 Pre-discovered Areas . | . . . Known Exits Taken . | . . . Unknown Exits Taken 2 | 1 1 . Scrap Searched . | . . . Spaces Dug 3 | . 3 . Terrain Destroyed 9 | . 9 . Melee . | . . . Projectile 3 | . 3 . AOE 6 | . 6 . Terrain Rammed . | . . . Walls Destroyed . | . . . Machines Disabled . | . . . Actions | -11 -10 -10 --------- Run | Yrd Mat Min Total 499 | 72 339 88 Wait 4 | . 1 3 Move 389 | 47 273 69 Hop . | . . . Pick Up 11 | 4 6 1 Fast Attach 9 | 7 2 . Attach 6 | . 4 2 Detach 4 | . 4 . Swap 9 | . 7 2 Drop 3 | . 3 . Fire 62 | 14 37 11 Melee 2 | . 2 . Ram . | . . . Kick . | . . . Crush . | . . . Escape Stasis . | . . . Rewire . | . . . Trap . | . . . Miscellaneous . | . . . Route ------- -11/Scrapyard -10/Materials (discovered 2 exits: [Mat] / [*Min]) -10/Mines History --------- Turn | Location | Event 5 | -11/Scrapyard | Discovered new exit (range 15) 108 | -11/Scrapyard | Entered Materials 309 | -10/Materials | Build established: Mutant 403 | -10/Materials | Discovered new exit (range 20) 520 | -10/Materials | Discovered new exit (range 7) 654 | -10/Materials | Entered Mines 665 | -10/Mines | Build established: Scavenger-Mutant 786 | -10/Mines | Learned Materials stockpile data 814 | -10/Mines | Core integrity fell below 50% 824 | -10/Mines | Core integrity fell below 20% 825 | -10/Mines | Destroyed by YI-UF0 with YI-UF0's Doublenader Last Messages --------------- 00804_ U-05 Engineer lays Concrete. 00806_ YI-UF0 mumbles something. 00806_ The unstable cave ceiling collapses. 00806_ U-05 Engineer lays Concrete. 00806_ U-05 Engineer builds a Wall. 00808_ The unstable cave ceiling collapses. 00810_ U-05 Engineer lays Concrete. 00812_ The unstable cave ceiling collapses. 00812_ U-05 Engineer builds a Wall. 00813_ Aluminum Leg destroyed. 00816_ The unstable cave ceiling collapses. 00816_ U-05 Engineer lays Concrete. 00816_ R-06 Scavenger collects Wheel. 00817_ Lgt. Assault Rifle destroyed. 00817_ U-05 Engineer lays Concrete. 00819_ U-05 Engineer builds a Wall. 00820_ The unstable cave ceiling collapses. 00821_ Lgt. Assault Rifle destroyed. 00823_ Mining Laser destroyed. 00824_ The unstable cave ceiling collapses. Map ----- +----------------------------------------------------+ | ???## ## #??## ???????? | | ???# #???# ???????? | | ???# ##???# * !#???????? | | ???## ##????# ## ?????????? | | ????# ##?????## ##???????????? | | ????## #####???????# ##????????????? | | ?????#######???????????# #####?????????????? | | ?????????????????####?## ###?????????????????? | | ????????????????## ### ##???????????????????? | | ????????????????# #????????????????????? | | ????????????????# ##????????????????????? | | ????????????????## ##?????????????????????? | | ?????????????????# % #??????????????????????? | | ?????????????????# #??????????????????????? | | ?????????????????## ##??????????????????????? | | ????????????####### #???????????????????????? | | ????????????# # ##???????????????????????? | | ??????????### # ###????????????????????????? | | ???????# ## #??????????#???????????????? | | ???????# #####????#### #????????????? | | ???????##?# % # ##### ?????????????? | | ???????????# # # ####?????????????? | | ????????????# ## #?????????????? | | ????????????# # #?????????????? | | ????????????## #??????????????? | | ???????????# @ g #??????????????? | | ???????????# #??????????????? | | ???????????# # r ##??????????????? | | ???????????# ####??????????????? | | ???????????# ##?????????????????? | | ???????????# # #??????????????????? | | ???????????##### ## #?????????????????? | | ???????????????##T # #?????????????????? | | ???????????????? ##?????????????????? | | ???????????????# % #??????????????????? | | ??????????????? ! #??????????????????? | | ??????????????? ??????????????????? | | ?????????????? *% ######??????????????????? | | ???????????????# % ????????????????????????? | | ??????????????????!# ????????????????????????? | | ??????????????????????#????????????????????????? | | ???????????????????????????????????????????????? | | ???????????????????????????????????????????????? | | ???????????????????????????????????????????????? | | ???????????????????????????????????????????????? | | ???????????????????????????????????????????????? | | ???????????????????????????????????????????????? | | ???????????????????????????????????????????????? | | ???????????????????????????????????????????????? | | ???????????????????????????????????????????????? | +----------------------------------------------------+ Best States ------------- Heat Dissipation 25 Energy Generation 14 Energy Capacity 250 Matter Stores 300 Matter Capacity 300 Sight Range 16 Terrain Scan Range 16 Terrain Scan Density 10 Evasion (%) 55 Offensive Hacking 10 Item Schematics ----------------- None Robot Schematics ------------------ None Fabricated ------------ Nothing Alien Tech Used ----------------- None Achievements -------------- None Challenges ------------ None Game ------ Seed LightPortableStreamer Manual? 0 Play Time 00:10:08 Cumulative 53.0 hours Start 2024.08.24 @ 11:12:22 End 2024.08.24 @ 11:20:36 Sessions 1 Manual Loads 0 Difficulty Rogue Special Mode None Game No. 70 Rogue 70 Adventurer 0 Explorer 0 Win Type - Total 0 Types 0/0/0/0/0/0/0/0/0 Lore% 14 Gallery% 28 Achievement% 27 Wizard Run 0 Options --------- Layout 1 ASCII 0 Keyboard 0 Movement Numpad Keybinds 0 Fullscreen 1 Font 32/SmallcapsGlow Map View 50x40 Zoom Use 0% Tactical HUD 1 Map Filters NONE Filters NONE Steam 1 RUN: a3f3415f-b025-4270-99ef-adaa72065138